bitfinex-derivatives/quotes_BNBF0:USTF0_20250709
["timestamp","ask_amount","ask_price","bid_price","bid_amount"]
[1752098366827,3.35877775,668.02,667.51,1.53706385]
[1752098367026,3.35877775,668.02,667.52,1.53706385]
[1752098367326,0.26062047,668.04,667.45,2.319]
[1752098367327,3.35877775,668.01,667.53,1.53706385]
[1752098367525,3.35877775,668.01,667.54,1.53706385]
[1752098367729,3.35877775,668.01,667.55,1.53706385]
[1752098368029,3.35877775,668.01,667.56,1.53706385]
[1752098368225,3.35877775,668.01,667.57,1.53706385]
[1752098368426,3.35877775,668.01,667.58,1.53706385]
[1752098368632,3.35877775,668.01,667.59,1.53706385]
[1752098368827,3.35877775,668.01,667.45,2.319]
[1752098369129,3.35877775,668.01,667.46,1.5384373]
[1752098369329,3.35877775,668.01,667.47,1.5384373]
[1752098369530,3.35877775,668.01,667.48,1.5384373]
[1752098369731,3.35877775,668.01,667.49,1.5384373]
[1752098369927,3.35877775,668.01,667.5,1.5384373]
[1752098370131,3.35877775,668.01,667.51,1.5384373]
[1752098370332,3.35877775,668.01,667.52,1.5384373]
[1752098370531,3.35877775,668.01,667.53,1.5384373]
[1752098370729,3.35877775,668.01,667.54,1.5384373]
[1752098370932,3.35877775,668.01,667.55,1.5384373]
[1752098371134,3.35877775,668.01,667.56,1.5384373]
[1752098371333,3.35877775,668.01,667.57,1.5384373]
[1752098371631,3.35877775,668.01,667.58,1.5384373]
[1752098371833,3.35877775,668.01,667.59,1.5384373]
[1752098372027,3.35877775,668.01,667.45,2.319]
[1752098372230,3.35877775,668.01,667.46,1.53842041]
[1752098372529,3.35877775,668.01,667.47,1.53842041]
[1752098372734,3.35877775,668.01,667.48,1.53842041]
[1752098373034,3.35877775,668.01,667.49,1.53842041]
[1752098373231,3.35877775,668.01,667.5,1.53842041]
[1752098373429,3.35877775,668.01,667.51,1.53842041]
[1752098373633,3.35877775,668.01,667.45,2.319]
[1752098373634,3.35877775,668.0,667.52,1.53842041]
[1752098373830,3.35877775,668.0,667.53,1.53842041]
[1752098374032,3.35877775,668.0,667.54,1.53842041]
[1752098374234,3.35877775,668.01,667.55,1.53842041]
[1752098374434,3.35877775,668.0,667.56,1.53842041]
[1752098374735,3.35877775,668.0,667.57,1.53842041]
[1752098375032,3.35877775,668.0,667.58,1.53842041]
[1752098375234,3.35877775,668.0,667.59,1.53842041]
[1752098375433,3.35877775,668.01,667.45,2.319]
[1752098375637,3.35877775,668.01,667.46,1.53842408]
[1752098375936,3.35877775,668.01,667.47,1.53842408]
[1752098376136,3.35877775,667.99,667.48,1.53842408]
[1752098376338,3.35877775,667.99,667.49,1.53842408]
[1752098376535,3.35877775,667.99,667.5,1.53842408]
[1752098376740,3.35877775,667.99,667.51,1.53842408]
[1752098376935,3.35877775,667.99,667.52,1.53842408]
[1752098377138,3.35877775,667.99,667.53,1.53842408]
[1752098377336,3.35877775,667.99,667.54,1.53842408]
[1752098377537,3.35877775,667.99,667.55,1.53842408]
[1752098377740,3.35877775,667.99,667.56,1.53842408]
[1752098378041,3.35877775,667.99,667.57,1.53842408]
[1752098378337,3.35877775,667.99,667.58,1.53842408]
[1752098378741,3.35877775,667.99,667.45,2.319]
[1752098378936,0.26062047,668.04,667.45,2.319]
[1752098389553,0.26062047,668.04,667.46,1.53894469]
[1752098389746,0.26062047,668.04,667.47,1.53894469]
[1752098389949,0.26062047,668.04,667.48,1.53894469]
[1752098390149,0.26062047,668.04,667.49,1.53894469]
[1752098390450,0.26062047,668.04,667.5,1.53894469]
[1752098390650,0.26062047,668.04,667.51,1.53894469]
[1752098390847,0.26062047,668.04,667.45,2.319]
[1752098391050,0.26062047,668.04,667.46,1.538573]
[1752098391247,0.26062047,668.04,667.47,1.538573]
[1752098391446,0.26062047,668.04,667.48,1.538573]
[1752098391647,0.26062047,668.04,667.49,1.538573]
[1752098391847,0.26062047,668.04,667.5,1.538573]
[1752098392047,0.26062047,668.04,667.51,1.538573]
[1752098392244,0.26062047,668.04,667.45,2.319]
[1752098392451,0.26062047,668.04,667.46,1.53845408]
[1752098392649,0.26062047,668.04,667.47,1.53845408]
[1752098392849,0.26062047,668.04,667.48,1.53845408]
[1752098393047,0.26062047,668.04,667.49,1.53845408]
[1752098393250,0.26062047,668.04,667.45,2.319]
[1752098393447,0.26062047,668.04,667.46,1.53828407]
[1752098393646,0.26062047,668.04,667.47,1.53828407]
[1752098393847,0.26062047,668.04,667.45,2.319]
[1752098393848,0.26062047,668.04,667.48,1.53828407]
[1752098394045,0.26062047,668.04,667.49,1.53828407]
[1752098394246,0.26062047,668.04,667.45,2.319]
[1752098394448,0.26062047,668.04,667.46,1.53801854]
[1752098394648,0.26062047,668.04,667.45,2.319]
[1752098394649,0.26062047,668.04,667.47,1.53801854]
[1752098394849,0.26062047,668.04,667.48,1.53801854]
[1752098395049,0.26062047,668.04,667.49,1.53801854]
[1752098395247,0.26062047,668.04,667.45,2.319]
[1752098395447,0.26062047,668.04,667.46,1.53800442]
[1752098395645,0.26062047,668.04,667.47,1.53800442]
[1752098395849,0.26062047,668.04,667.48,1.53800442]
[1752098396047,0.26062047,668.04,667.45,2.319]
[1752098396247,0.26062047,668.04,667.46,1.53788672]
[1752098396452,0.26062047,668.04,667.47,1.53788672]
[1752098396650,0.26062047,668.04,667.48,1.53788672]
[1752098396854,0.26062047,668.04,667.45,2.319]
[1752098397051,0.26062047,668.04,667.46,1.53779528]
[1752098397349,0.26062047,668.04,667.47,1.53779528]
[1752098397549,0.26062047,668.04,667.48,1.53779528]
[1752098397753,0.26062047,668.04,667.45,2.319]
[1752098397954,0.26062047,668.04,667.46,1.53812889]
[1752098398249,0.26062047,668.04,667.47,1.53812889]
[1752098398449,0.26062047,668.04,667.48,1.53812889]
[1752098398652,0.26062047,668.04,667.45,2.319]
[1752098398850,0.26062047,668.04,667.46,1.53804078]
[1752098399055,0.26062047,668.04,667.47,1.53804078]
[1752098399252,0.26062047,668.04,667.48,1.53804078]
[1752098399552,0.26062047,668.04,667.45,2.319]
[1752098399750,0.26062047,668.04,667.46,1.5379745]
[1752098399956,3.36099617,668.01,667.45,2.319]
[1752098400150,3.36099617,668.01,667.46,1.5379745]
[1752098400350,3.36099617,668.01,667.45,2.319]
[1752098400549,3.36099617,667.99,667.46,1.5379745]
[1752098400753,3.36099617,667.99,667.45,2.319]
[1752098400951,3.36099617,667.99,667.46,1.53797471]
[1752098401254,3.36099617,668.0,667.45,2.319]
[1752098401452,3.36099617,667.99,667.46,1.53789491]
[1752098401649,3.36099617,667.99,667.45,2.319]
[1752098401950,3.36099617,667.76,667.45,2.319]
[1752098402153,3.36099617,667.74,667.45,2.319]
[1752098402555,3.36099617,667.75,667.02,0.26068294]
[1752098402749,3.36099617,667.75,667.03,1.53779428]
[1752098402955,3.36099617,667.7,667.04,1.53779428]
[1752098403250,3.36099617,667.7,667.05,1.53779428]
[1752098403450,3.36099617,667.7,667.06,1.53779428]
[1752098403656,3.36099617,667.7,667.07,1.53779428]
[1752098403854,3.36099617,667.66,667.08,1.53779428]
[1752098404053,3.36099617,667.66,667.09,1.53779428]
[1752098404254,3.36099617,667.67,667.1,1.53779428]
[1752098404451,3.36099617,667.67,667.11,1.53779428]
[1752098404754,3.36099617,667.7,667.12,1.53779428]
[1752098404950,3.36099617,667.7,667.13,1.53779428]
[1752098405154,3.36099617,667.7,667.14,1.53779428]
[1752098405353,3.36099617,667.71,667.15,1.53779428]
[1752098405552,3.36099617,667.71,667.16,1.53779428]
[1752098405856,3.36099617,667.85,667.17,1.53779428]
[1752098406053,3.36099617,667.85,667.41,2.356]
[1752098406257,3.36099617,667.86,667.41,2.356]
[1752098406456,3.36099617,667.87,667.41,2.356]
[1752098406952,3.36099617,667.85,667.41,2.356]
[1752098407656,3.36099617,667.86,667.41,2.356]
[1752098407958,3.36099617,667.85,667.41,2.356]
[1752098408151,3.36099617,667.87,667.41,2.356]
[1752098408653,3.36099617,667.88,667.41,2.356]
[1752098408853,3.36099617,667.85,667.41,2.356]
[1752098409253,3.36099617,667.89,667.41,2.356]
[1752098409452,3.36099617,667.88,667.41,2.356]
[1752098409658,3.36099617,668.0,667.42,1.53643168]
[1752098409953,3.36099617,668.03,667.43,1.53643168]
[1752098410153,3.36099617,668.03,667.44,1.53643168]
[1752098410359,3.36099617,668.03,667.41,2.356]
[1752098410558,3.36099617,668.03,667.42,1.53613998]
[1752098410858,3.36099617,668.09,667.43,1.53613998]
[1752098411158,3.36099617,668.11,667.44,1.53613998]
[1752098411360,3.36099617,668.13,667.45,1.53613998]
[1752098411658,3.36099617,668.14,667.46,1.53613998]
[1752098411957,3.36099617,668.15,667.47,1.53613998]
[1752098412153,3.36099617,668.17,667.48,1.53613998]
[1752098412454,3.36099617,668.19,667.49,1.53613998]
[1752098412658,3.36099617,668.2,667.5,1.53613998]
[1752098412961,3.36099617,668.2,667.51,1.53613998]
[1752098413257,3.36099617,668.19,667.52,1.53613998]
[1752098413458,3.62153664,668.27,667.53,1.53613998]
[1752098413659,3.62153664,668.27,667.54,1.53613998]
[1752098413859,3.62153664,668.27,667.55,1.53613998]
[1752098414160,0.26054047,668.27,667.56,1.53613998]
[1752098414462,0.26054047,668.27,667.57,1.53613998]
[1752098414656,0.26054047,668.27,667.58,1.53613998]
[1752098414959,0.26054047,668.27,667.59,1.53613998]
[1752098415157,0.26054047,668.27,667.6,1.53613998]
[1752098415357,0.26054047,668.27,667.61,1.53613998]
[1752098415556,0.26054047,668.27,667.41,2.356]
[1752098415756,0.26054047,668.27,667.42,1.5323344]
[1752098415957,0.26054047,668.27,667.43,1.5323344]
[1752098416156,0.26054047,668.27,667.44,1.5323344]
[1752098416456,0.26054047,668.27,667.45,1.5323344]
[1752098416754,0.26054047,668.27,667.46,1.5323344]
[1752098416955,0.26054047,668.27,667.47,1.5323344]
[1752098417159,0.26054047,668.27,667.48,1.5323344]
[1752098417361,0.26054047,668.27,667.49,1.5323344]
[1752098417562,0.26054047,668.27,667.5,1.5323344]
[1752098417858,0.26054047,668.27,667.51,1.5323344]
[1752098418060,0.26054047,668.27,667.52,1.5323344]
[1752098418358,0.26054047,668.27,667.53,1.5323344]
[1752098418559,0.26054047,668.27,667.54,1.5323344]
[1752098418761,0.26054047,668.27,667.55,1.5323344]
[1752098419061,0.26054047,668.27,667.56,1.5323344]
[1752098419258,0.26054047,668.27,667.57,1.5323344]
[1752098419561,0.26054047,668.27,667.58,1.5323344]
[1752098419759,0.26054047,668.27,667.59,1.5323344]
[1752098420061,0.26054047,668.27,667.6,1.5323344]
[1752098420260,0.26054047,668.27,667.41,2.356]
[1752098420461,0.26054047,668.27,667.42,1.52973994]
[1752098420662,0.26054047,668.27,667.43,1.52973994]
[1752098420964,0.26054047,668.27,667.44,1.52973994]
[1752098421158,0.26054047,668.27,667.45,1.52973994]
[1752098421458,0.26054047,668.27,667.46,1.52973994]
[1752098421661,0.26054047,668.27,667.47,1.52973994]
[1752098421961,0.26054047,668.27,667.48,1.52973994]
[1752098422161,0.26054047,668.27,667.41,2.356]
[1752098422162,0.26054047,668.27,667.49,1.52973994]
[1752098422363,0.26054047,668.27,667.5,1.52973994]
[1752098422560,0.26054047,668.27,667.51,1.52973994]
[1752098422764,0.26054047,668.27,667.52,1.52973994]
[1752098422964,0.26054047,668.27,667.53,1.52973994]
[1752098423163,0.26054047,668.27,667.54,1.52973994]
[1752098423363,0.26054047,668.27,667.55,1.52973994]
[1752098423664,0.26054047,668.27,667.56,1.52973994]
[1752098423859,0.26054047,668.27,667.57,1.52973994]
[1752098424060,0.26054047,668.27,667.58,1.52973994]
[1752098424263,0.26054047,668.27,667.59,1.52973994]
[1752098424561,0.26054047,668.27,667.41,2.356]
[1752098424761,0.26054047,668.27,667.42,1.5282006]
[1752098424960,0.26054047,668.27,667.43,1.5282006]
[1752098425159,0.26054047,668.27,667.44,1.5282006]
[1752098425364,0.26054047,668.27,667.45,1.5282006]
[1752098425561,0.26054047,668.27,667.46,1.5282006]
[1752098425765,0.26054047,668.27,667.47,1.5282006]
[1752098425963,0.26054047,668.27,667.48,1.5282006]
[1752098426167,0.26054047,668.27,667.49,1.5282006]
[1752098426362,0.26054047,668.27,667.5,1.5282006]
[1752098426562,0.26054047,668.27,667.51,1.5282006]
[1752098426762,0.26054047,668.27,667.52,1.5282006]
[1752098427062,0.26054047,668.27,667.53,1.5282006]
[1752098427266,0.26054047,668.27,667.54,1.5282006]
[1752098427466,0.26054047,668.27,667.55,1.5282006]
[1752098427668,0.26054047,668.27,667.56,1.5282006]
[1752098427867,0.26054047,668.27,667.57,1.5282006]
[1752098428166,0.26054047,668.27,667.58,1.5282006]
[1752098428364,0.26054047,668.27,667.59,1.5282006]
[1752098428664,0.26054047,668.27,667.41,2.356]
[1752098428867,0.26054047,668.27,667.42,1.52955849]
[1752098429066,0.26054047,668.27,667.43,1.52955849]
[1752098429261,3.36099617,668.52,667.44,1.52955849]
[1752098429468,0.26047514,668.37,667.45,1.52955849]
[1752098429663,0.26047514,668.37,667.46,1.52955849]
[1752098429863,0.26047514,668.37,667.41,2.356]
[1752098429864,0.26047514,668.37,667.47,1.52955849]
[1752098430065,0.26047514,668.37,667.48,1.52955849]
[1752098430265,0.26047514,668.37,667.49,1.52955849]
[1752098430467,0.26047514,668.37,667.5,1.52955849]
[1752098430767,0.26047514,668.37,667.51,1.52955849]
[1752098431068,0.26047514,668.37,667.52,1.52955849]
[1752098431269,0.26047514,668.37,667.53,1.52955849]
[1752098431462,0.26047514,668.37,667.54,1.52955849]
[1752098431664,0.26047514,668.37,667.55,1.52955849]
[1752098431964,0.26047514,668.37,667.56,1.52955849]
[1752098432168,3.36099617,668.66,667.57,1.52955849]
[1752098432464,0.26042544,668.51,667.58,1.52955849]
[1752098432669,0.26042544,668.51,667.41,2.356]
[1752098432864,0.26042544,668.51,667.47,1.6684804]
[1752098433169,0.26042544,668.51,667.51,1.6684804]
[1752098433368,0.26042544,668.51,667.52,1.52780387]
[1752098433563,0.26042544,668.51,667.53,1.52780387]
[1752098433766,0.26042544,668.51,667.54,1.52780387]
[1752098433966,0.26042544,668.51,667.55,1.52780387]
[1752098434170,0.26042544,668.51,667.56,1.52780387]
[1752098434469,0.26042544,668.51,667.57,1.52780387]
[1752098434769,0.26042544,668.51,667.58,1.52780387]
[1752098434972,0.26042544,668.51,667.59,1.52780387]
[1752098435169,0.26042544,668.51,667.6,1.52780387]
[1752098435469,0.26042544,668.51,667.61,1.52780387]
[1752098435672,0.26042544,668.51,667.62,1.52780387]
[1752098435872,0.26042544,668.51,667.63,1.52780387]
[1752098436072,0.26042544,668.51,667.64,1.52780387]
[1752098436273,0.26042544,668.51,667.65,1.52780387]
[1752098436573,0.26042544,668.51,667.66,1.52780387]
[1752098436772,0.26042544,668.51,667.67,1.52780387]
[1752098436973,0.26042544,668.51,667.68,1.52780387]
[1752098437272,0.26042544,668.51,667.69,1.52780387]
[1752098437570,0.26042544,668.51,667.7,1.52780387]
[1752098437773,0.26042544,668.51,667.71,1.52780387]
[1752098437971,0.26042544,668.51,667.72,1.52780387]
[1752098438169,0.26042544,668.51,667.73,1.52780387]
[1752098438369,0.26042544,668.51,667.74,1.52780387]
[1752098438669,0.26042544,668.51,667.49,2.377]
[1752098438870,0.26042544,668.51,667.5,1.5254071]
[1752098439069,0.26042544,668.51,667.51,1.5254071]
[1752098439273,0.26042544,668.51,667.52,1.5254071]
[1752098439469,0.26042544,668.51,667.53,1.5254071]
[1752098439673,0.26042544,668.51,667.54,1.5254071]
[1752098439873,0.26042544,668.51,667.55,1.5254071]
[1752098440073,0.26042544,668.51,667.56,1.5254071]
[1752098440270,0.26042544,668.51,667.57,1.5254071]
[1752098440474,0.26042544,668.51,667.58,1.5254071]
[1752098440677,0.26042544,668.51,667.59,1.5254071]
[1752098440975,0.26042544,668.51,667.6,1.5254071]
[1752098441173,0.26042544,668.51,667.61,1.5254071]
[1752098441376,0.26042544,668.51,667.62,1.5254071]
[1752098441575,0.26042544,668.51,667.63,1.5254071]
[1752098441776,0.26042544,668.51,667.64,1.5254071]
[1752098441975,0.26042544,668.51,667.65,1.5254071]
[1752098442172,0.26042544,668.51,667.66,1.5254071]
[1752098442473,0.26042544,668.51,667.67,1.5254071]
[1752098442672,0.26042544,668.51,667.68,1.5254071]
[1752098442977,3.36099617,668.94,667.69,1.5254071]
[1752098443277,0.2603699,668.58,667.7,1.5254071]
[1752098443477,0.2603699,668.58,667.71,1.5254071]
[1752098443682,0.2603699,668.58,667.54,1.6684804]
[1752098443683,0.2603699,668.58,667.72,1.5254071]
[1752098443979,0.2603699,668.58,667.73,1.5254071]
[1752098444279,0.2603699,668.58,667.74,1.5254071]
[1752098444476,0.2603699,668.58,667.75,1.5254071]
[1752098444681,0.2603699,668.58,667.76,1.5254071]
[1752098444879,0.2603699,668.58,667.77,1.5254071]
[1752098445079,0.2603699,668.58,667.78,1.5254071]
[1752098445282,0.2603699,668.58,667.79,1.5254071]
[1752098445482,0.2603699,668.58,667.8,1.5254071]
[1752098445678,0.2603699,668.58,667.81,1.5254071]
[1752098445881,0.2603699,668.58,667.57,1.6684804]
[1752098445882,0.2603699,668.58,667.82,1.5254071]
[1752098446079,0.2603699,668.58,667.83,1.5254071]
[1752098446284,0.2603699,668.58,667.84,1.5254071]
[1752098446481,0.2603699,668.58,667.85,1.5254071]
[1752098446782,0.2603699,668.58,667.58,1.6684804]
[1752098446980,0.2603699,668.58,667.59,3.18920856]
[1752098447280,0.2603699,668.58,667.6,1.52072816]
[1752098448483,0.2603699,668.58,667.61,1.52072816]
[1752098448686,0.2603699,668.58,667.62,1.52072816]
[1752098448885,0.2603699,668.58,667.63,1.52072816]
[1752098449083,0.2603699,668.58,667.64,1.52072816]
[1752098449282,0.2603699,668.58,667.65,1.52072816]
[1752098449488,0.2603699,668.58,667.66,1.52072816]
[1752098449787,0.2603699,668.58,667.67,1.52072816]
[1752098450082,0.2603699,668.58,667.68,1.52072816]
[1752098450284,0.2603699,668.58,667.69,1.52072816]
[1752098450486,0.2603699,668.58,667.7,1.52072816]
[1752098450687,0.2603699,668.58,667.71,1.52072816]
[1752098450885,0.2603699,668.58,667.72,1.52072816]
[1752098451083,0.2603699,668.58,667.73,1.52072816]
[1752098451289,0.2603699,668.58,667.74,1.52072816]
[1752098451485,0.2603699,668.58,667.75,1.52072816]
[1752098451690,0.2603699,668.58,667.76,1.52072816]
[1752098451890,0.2603699,668.58,667.77,1.52072816]
[1752098452090,0.2603699,668.58,667.78,1.52072816]
[1752098452387,0.2603699,668.58,667.79,1.52072816]
[1752098452588,0.2603699,668.58,667.8,1.52072816]
[1752098452786,0.2603699,668.58,667.81,1.52072816]
[1752098452993,0.2603699,668.58,667.82,1.52072816]
[1752098453293,0.2603699,668.58,667.83,1.52072816]
[1752098453493,0.2603699,668.58,667.84,1.52072816]
[1752098453693,0.2603699,668.58,667.85,1.52072816]
[1752098453894,0.2603699,668.58,667.86,1.52072816]
[1752098454194,0.2603699,668.58,667.57,1.6684804]
[1752098454490,0.2603699,668.58,667.58,1.51978179]
[1752098454694,0.2603699,668.58,667.59,1.51978179]
[1752098454990,0.2603699,668.58,667.6,1.51978179]
[1752098455192,0.2603699,668.58,667.61,1.51978179]
[1752098455396,0.2603699,668.58,667.62,1.51978179]
[1752098455695,0.2603699,668.58,667.63,1.51978179]
[1752098455992,0.2603699,668.58,667.64,1.51978179]
[1752098456192,0.2603699,668.58,667.65,1.51978179]
[1752098456493,0.2603699,668.58,667.66,1.51978179]
[1752098456695,0.2603699,668.58,667.67,1.51978179]
[1752098456895,0.2603699,668.58,667.68,1.51978179]
[1752098457095,0.2603699,668.58,667.69,1.51978179]
[1752098457293,0.2603699,668.58,667.7,1.51978179]
[1752098457493,0.2603699,668.58,667.71,1.51978179]
[1752098457692,0.2603699,668.58,667.72,1.51978179]
[1752098457992,0.2603699,668.58,667.73,1.51978179]
[1752098458197,0.2603699,668.58,667.74,1.51978179]
[1752098458497,0.2603699,668.58,667.75,1.51978179]
[1752098458694,0.2603699,668.58,667.76,1.51978179]
[1752098458992,0.2603699,668.58,667.77,1.51978179]
[1752098459193,0.2603699,668.58,667.78,1.51978179]
[1752098459497,0.2603699,668.58,667.79,1.51978179]
[1752098459698,0.2603699,668.58,667.8,1.51978179]
[1752098459895,0.2603699,668.58,667.81,1.51978179]
[1752098460099,0.2603699,668.58,667.82,1.51978179]
[1752098460298,0.2603699,668.58,667.83,1.51978179]
[1752098460501,0.2603699,668.58,667.84,1.51978179]
[1752098460699,0.2603699,668.58,667.85,1.51978179]
[1752098460999,0.2603699,668.58,667.86,1.51978179]
[1752098461196,0.2603699,668.58,667.87,1.51978179]
[1752098461399,0.2603699,668.58,667.88,1.51978179]
[1752098461601,0.2603699,668.58,667.89,1.51978179]
[1752098461801,0.2603699,668.58,667.9,1.51978179]
[1752098462096,0.2603699,668.58,667.91,1.51978179]
[1752098462301,0.2603699,668.58,667.55,1.6684804]
[1752098462501,0.2603699,668.58,667.56,1.52714676]
[1752098462697,0.2603699,668.58,667.57,1.52714676]
[1752098462898,0.2603699,668.58,667.58,1.52714676]
[1752098463097,0.2603699,668.58,667.59,1.52714676]
[1752098463401,0.2603699,668.58,667.6,1.52714676]
[1752098463601,0.2603699,668.58,667.61,1.52714676]
[1752098463896,0.2603699,668.58,667.62,1.52714676]
[1752098464201,0.2603699,668.58,667.63,1.52714676]
[1752098464401,0.2603699,668.58,667.64,1.52714676]
[1752098464602,0.2603699,668.58,667.65,1.52714676]
[1752098464801,0.2603699,668.58,667.66,1.52714676]
[1752098465002,0.2603699,668.58,667.67,1.52714676]
[1752098465298,0.2603699,668.58,667.68,1.52714676]
[1752098465497,0.2603699,668.58,667.69,1.52714676]
[1752098465702,0.2603699,668.58,667.7,1.52714676]
[1752098465898,0.2603699,668.58,667.71,1.52714676]
[1752098466102,0.2603699,668.58,667.72,1.52714676]
[1752098466301,0.2603699,668.58,667.51,1.6684804]
[1752098466302,0.2603699,668.58,667.73,1.52714676]
[1752098466603,0.2603699,668.58,667.74,1.52714676]
[1752098466903,0.2603699,668.58,667.75,1.52714676]
[1752098467102,0.2603699,668.58,667.76,1.52714676]
[1752098467303,0.2603699,668.58,667.77,1.52714676]
[1752098467504,0.2603699,668.58,667.78,1.52714676]
[1752098467704,0.2603699,668.58,667.79,1.53126471]
[1752098468002,0.2603699,668.58,667.52,1.66636412]
[1752098468003,0.2603699,668.58,667.8,1.53126471]
[1752098468203,0.2603699,668.58,667.81,1.53126471]
[1752098468500,0.2603699,668.58,667.82,1.53126471]
[1752098468804,0.2603699,668.58,667.83,1.53126471]
[1752098469003,0.2603699,668.58,667.84,1.53126471]
[1752098469302,0.2603699,668.58,667.85,1.53126471]
[1752098469503,0.2603699,668.58,667.86,1.53126471]
[1752098469801,0.2603699,668.58,667.52,1.66636412]
[1752098470004,0.2603699,668.58,667.58,1.66636412]
[1752098470204,0.2603699,668.58,667.59,1.53337845]
[1752098470403,0.2603699,668.58,667.6,1.53337845]
[1752098470599,0.2603699,668.58,667.61,1.53337845]
[1752098470805,0.2603699,668.58,667.62,1.53337845]
[1752098471006,0.2603699,668.58,667.63,1.53337845]
[1752098471204,0.2603699,668.58,667.64,1.53337845]
[1752098471404,0.2603699,668.58,667.65,1.53337845]
[1752098471606,0.2603699,668.58,667.66,1.53337845]
[1752098471905,0.2603699,668.58,667.67,1.53337845]
[1752098472102,0.2603699,668.58,667.68,1.53337845]
[1752098472306,0.2603699,668.58,667.69,1.53337845]
[1752098472606,0.2603699,668.58,667.59,1.66636412]
[1752098472607,0.2603699,668.58,667.7,1.53337845]
[1752098472807,0.2603699,668.58,667.71,1.53337845]
[1752098473107,0.2603699,668.58,667.72,1.53337845]
[1752098473304,0.2603699,668.58,667.73,1.53337845]
[1752098473505,0.2603699,668.58,667.74,1.53337845]
[1752098473807,0.2603699,668.58,667.75,1.53337845]
[1752098474008,0.2603699,668.58,667.76,1.53337845]
[1752098474207,0.2603699,668.58,667.77,1.53337845]
[1752098474407,0.2603699,668.58,667.78,1.53337845]
[1752098474608,0.2603699,668.58,667.79,1.53337845]
[1752098474804,0.2603699,668.58,667.8,1.53337845]
[1752098480413,3.62136607,668.58,667.8,1.53337845]
[1752098481013,0.2603699,668.58,667.8,1.53337845]
[1752098481414,3.62136607,668.58,667.8,1.53337845]
[1752098482314,0.2603699,668.58,667.8,1.53337845]
[1752098482816,3.62136607,668.58,667.81,1.53541931]
[1752098483014,3.62136607,668.58,667.82,1.53541931]
[1752098483217,3.36099617,668.57,667.83,1.53541931]
[1752098483415,3.36099617,668.57,667.84,1.53541931]
[1752098483614,3.36099617,668.57,667.85,1.53541931]
[1752098483813,3.62136607,668.58,667.86,1.53541931]
[1752098484016,3.62136607,668.58,667.87,1.53541931]
[1752098484217,3.36099617,668.57,667.88,1.53541931]
[1752098484413,3.36099617,668.56,667.89,1.53541931]
[1752098484614,3.36099617,668.56,667.79,1.73]
[1752098484812,3.36099617,668.56,667.8,1.53598885]
[1752098485015,3.36099617,668.56,667.81,1.53598885]
[1752098485218,3.36099617,668.55,667.82,1.53598885]
[1752098485417,3.36099617,668.55,667.83,1.53598885]
[1752098485620,3.36099617,668.55,667.84,1.53598885]
[1752098485821,3.36099617,668.55,667.85,1.53598885]
[1752098486015,3.36099617,668.74,667.86,1.53598885]
[1752098486221,0.2603777,668.67,667.87,1.53598885]
[1752098486419,0.2603777,668.67,667.88,1.53598885]
[1752098486615,0.2603777,668.67,667.89,1.53598885]
[1752098486816,0.2603777,668.67,667.9,1.53598885]
[1752098487022,0.2603777,668.67,667.79,1.73]
[1752098487221,0.2603777,668.67,667.8,1.53666772]
[1752098487521,0.2603777,668.67,667.81,1.53666772]
[1752098487721,0.2603777,668.67,667.82,1.53666772]
[1752098487915,0.2603777,668.67,667.83,1.53666772]
[1752098488120,0.2603777,668.67,667.84,1.53666772]
[1752098488314,0.2603777,668.67,667.85,1.53666772]
[1752098488517,0.2603777,668.67,667.86,1.53666772]
[1752098488816,0.2603777,668.67,667.87,1.53666772]
[1752098489016,0.2603777,668.67,667.88,1.53666772]
[1752098489217,0.2603777,668.67,667.89,1.53666772]
[1752098489421,0.2603777,668.67,667.9,1.53666772]
[1752098489621,0.2603777,668.67,667.91,1.53666772]
[1752098489821,0.2603777,668.67,667.8,1.53666772]
[1752098490021,0.2603777,668.67,667.81,1.53666772]
[1752098490226,0.2603777,668.67,667.82,1.53666772]
[1752098490420,0.2603777,668.67,667.79,1.73]
[1752098490421,0.2603777,668.67,667.83,1.53666772]
[1752098490623,0.2603777,668.67,667.79,1.73]
[1752098490624,0.2603777,668.67,667.84,1.53666772]
[1752098490822,0.2603777,668.67,667.85,1.53666772]
[1752098491020,0.2603777,668.67,667.86,1.53666772]
[1752098491321,0.2603777,668.67,667.87,1.53666772]
[1752098491522,0.2603777,668.67,667.88,1.53666772]
[1752098491722,0.2603777,668.67,667.89,1.53666772]
[1752098491922,0.2603777,668.67,667.9,1.53666772]
[1752098492123,0.2603777,668.67,667.91,1.53666772]
[1752098492326,0.2603777,668.67,667.92,1.53666772]
[1752098492520,0.2603777,668.67,667.93,1.53666772]
[1752098492724,0.2603777,668.67,667.94,1.53666772]
[1752098492922,0.2603777,668.67,667.95,1.53666772]
[1752098493225,0.2603777,668.67,667.96,1.53666772]
[1752098493526,0.2603777,668.67,667.97,1.53666772]
[1752098493720,0.2603777,668.67,667.98,1.53666772]
[1752098493922,0.2603777,668.67,667.79,1.73]
[1752098494122,0.2603777,668.67,667.8,1.53844004]
[1752098494325,0.2603777,668.67,667.81,1.53844004]
[1752098494526,0.2603777,668.67,667.82,1.53844004]